[Event "Early-Titled-Tuesday-Blitz-January-23-2024"]
[Site "Chess.com"]
[Date "2024.01.23"]
[Round "2"]
[White "LevonAronian"]
[Black "Gennady_Kozlov"]
[Result "1-0"]
[WhiteElo "3113"]
[BlackElo "2647"]
[TimeControl "180+1"]
[EndTime "8:17:10 PST"]
[Termination "LevonAronian won by resignation"]

1. e4 {[%clk 0:02:57.3]} 1... e6 {[%clk 0:02:55.3]} 2. d4 {[%clk 0:02:57.1]}
2... d5 {[%clk 0:02:54.9]} 3. Nc3 {[%clk 0:02:57.3]} 3... Nf6 {[%clk 0:02:54.2]}
4. Bg5 {[%clk 0:02:56.9]} 4... Be7 {[%clk 0:02:53.4]} 5. e5 {[%clk 0:02:56.1]}
5... Nfd7 {[%clk 0:02:53.1]} 6. h4 {[%clk 0:02:56]} 6... Nc6 {[%clk 0:02:51.8]}
7. Qd2 {[%clk 0:01:49.7]} 7... Nb6 {[%clk 0:02:49.9]} 8. O-O-O {[%clk
0:01:36.3]} 8... Bd7 {[%clk 0:02:48.2]} 9. Be2 {[%clk 0:01:33]} 9... h6 {[%clk
0:02:45.8]} 10. Bxe7 {[%clk 0:01:32.4]} 10... Qxe7 {[%clk 0:02:44.6]} 11. h5
{[%clk 0:01:27.2]} 11... O-O-O {[%clk 0:02:43.3]} 12. f4 {[%clk 0:01:26.5]}
12... f6 {[%clk 0:02:42.5]} 13. Rh3 {[%clk 0:01:23.7]} 13... Be8 {[%clk
0:02:40.6]} 14. Kb1 {[%clk 0:01:22.2]} 14... Nc4 {[%clk 0:02:37.6]} 15. Qc1
{[%clk 0:01:15.3]} 15... Qb4 {[%clk 0:02:35.6]} 16. Ka1 {[%clk 0:01:15.1]} 16...
a5 {[%clk 0:02:25.6]} 17. a3 {[%clk 0:01:11.7]} 17... Qb6 {[%clk 0:02:24.3]} 18.
Nf3 {[%clk 0:01:08.7]} 18... a4 {[%clk 0:02:22.1]} 19. g4 {[%clk 0:00:47.9]}
19... Qa5 {[%clk 0:02:17.9]} 20. Na2 {[%clk 0:00:47.4]} 20... b5 {[%clk
0:02:15.8]} 21. g5 {[%clk 0:00:42.9]} 21... hxg5 {[%clk 0:02:11.6]} 22. fxg5
{[%clk 0:00:36.7]} 22... fxe5 {[%clk 0:02:10.2]} 23. Nxe5 {[%clk 0:00:36.5]}
23... N6xe5 {[%clk 0:02:08.5]} 24. dxe5 {[%clk 0:00:36.9]} 24... Nxe5 {[%clk
0:02:07.7]} 25. Nb4 {[%clk 0:00:22.8]} 25... Nc4 {[%clk 0:02:05.2]} 26. Nd3
{[%clk 0:00:22.1]} 26... Qb6 {[%clk 0:02:02.6]} 27. Qf4 {[%clk 0:00:19.2]} 27...
Qd6 {[%clk 0:01:55.8]} 28. Qxd6 {[%clk 0:00:14.2]} 28... cxd6 {[%clk 0:01:56.7]}
29. Nf4 {[%clk 0:00:11.8]} 29... Bd7 {[%clk 0:01:48.8]} 30. Ng6 {[%clk
0:00:12.1]} 30... Rh7 {[%clk 0:01:47.1]} 31. Bd3 {[%clk 0:00:12.2]} 31... Kc7
{[%clk 0:01:43.8]} 32. Nf8 {[%clk 0:00:08.6]} 32... Rh8 {[%clk 0:01:41.2]} 33.
Ng6 {[%clk 0:00:08.9]} 33... Rh7 {[%clk 0:01:37]} 34. Rf1 {[%clk 0:00:08.9]}
34... e5 {[%clk 0:01:36.1]} 35. Rf7 {[%clk 0:00:08.4]} 35... e4 {[%clk
0:01:33.7]} 36. Bxc4 {[%clk 0:00:08.3]} 36... bxc4 {[%clk 0:01:31.7]} 37. h6
{[%clk 0:00:08.8]} 37... Kb6 {[%clk 0:01:28.3]} 38. Rh4 {[%clk 0:00:04.1]} 38...
Be8 {[%clk 0:01:27.1]} 39. Rxg7 {[%clk 0:00:01.8]} 39... Bxg6 {[%clk 0:01:24.1]}
40. Rxg6 {[%clk 0:00:01.8]} 40... e3 {[%clk 0:01:24.1]} 41. Re6 {[%clk
0:00:01.9]} 41... Kc5 {[%clk 0:01:20.2]} 42. g6 {[%clk 0:00:02.2]} 42... Rhd7
{[%clk 0:01:17.4]} 43. Rxe3 {[%clk 0:00:02.3]} 43... d4 {[%clk 0:01:16.8]} 44.
Re1 {[%clk 0:00:02.8]} 44... d5 {[%clk 0:01:12.8]} 45. g7 {[%clk 0:00:03.3]}
45... d3 {[%clk 0:01:12.6]} 46. cxd3 {[%clk 0:00:03.1]} 46... cxd3 {[%clk
0:01:13.5]} 47. Rc1+ {[%clk 0:00:03.3]} 47... Kd6 {[%clk 0:01:12.8]} 48. Rd1
{[%clk 0:00:03.9]} 48... Kc5 {[%clk 0:01:08]} 49. h7 {[%clk 0:00:04.4]} 49... d4
{[%clk 0:01:08.9]} 50. h8=Q {[%clk 0:00:04.8]} 1-0

[Event "Early-Titled-Tuesday-Blitz-January-23-2024"]
[Site "Chess.com"]
[Date "2024.01.23"]
[Round "2"]
[White "Indianlad"]
[Black "Crazy_girl99"]
[Result "1-0"]
[WhiteElo "2984"]
[BlackElo "2623"]
[TimeControl "180+1"]
[EndTime "8:17:10 PST"]
[Termination "Indianlad won by resignation"]

1. f4 {[%clk 0:02:59.7]} 1... c5 {[%clk 0:02:59.5]} 2. Nf3 {[%clk 0:02:59.4]}
2... Nc6 {[%clk 0:02:59.7]} 3. g3 {[%clk 0:02:59.5]} 3... d5 {[%clk 0:02:59.6]}
4. Bg2 {[%clk 0:02:59.7]} 4... g6 {[%clk 0:02:59.3]} 5. O-O {[%clk 0:02:59.7]}
5... Bg7 {[%clk 0:02:59.7]} 6. d3 {[%clk 0:03:00.3]} 6... Nf6 {[%clk 0:02:58.7]}
7. Nc3 {[%clk 0:03:00.1]} 7... O-O {[%clk 0:02:58.3]} 8. e4 {[%clk 0:02:51.9]}
8... dxe4 {[%clk 0:02:32.3]} 9. dxe4 {[%clk 0:02:51.7]} 9... Qb6 {[%clk
0:02:23.6]} 10. e5 {[%clk 0:02:44.3]} 10... c4+ {[%clk 0:02:16.9]} 11. Kh1
{[%clk 0:02:42.8]} 11... Ng4 {[%clk 0:02:17.1]} 12. Qe2 {[%clk 0:02:40.9]} 12...
Be6 {[%clk 0:02:12.2]} 13. Ng5 {[%clk 0:02:39.5]} 13... Nd4 {[%clk 0:02:10.2]}
14. Qd1 {[%clk 0:02:28.2]} 14... Rfd8 {[%clk 0:01:48.6]} 15. Nxe6 {[%clk
0:02:27.8]} 15... Qxe6 {[%clk 0:01:48.5]} 16. Bd2 {[%clk 0:02:21.4]} 16... Nf5
{[%clk 0:01:42.7]} 17. Qe2 {[%clk 0:01:44.4]} 17... Nd4 {[%clk 0:01:29.2]} 18.
Qe4 {[%clk 0:01:44.3]} 18... h5 {[%clk 0:01:28.7]} 19. Rad1 {[%clk 0:01:41.3]}
19... Rab8 {[%clk 0:01:09]} 20. Nd5 {[%clk 0:01:37.6]} 20... Nf5 {[%clk
0:01:01.8]} 21. Bc3 {[%clk 0:01:29.5]} 21... b5 {[%clk 0:00:59.5]} 22. Qf3
{[%clk 0:01:25.3]} 22... Rd7 {[%clk 0:00:33.9]} 23. h3 {[%clk 0:01:04.8]} 23...
Ngh6 {[%clk 0:00:33.9]} 24. Rd2 {[%clk 0:00:57.3]} 24... Rbd8 {[%clk 0:00:33.5]}
25. Rfd1 {[%clk 0:00:57.1]} 25... h4 {[%clk 0:00:26.3]} 26. g4 {[%clk
0:00:56.9]} 26... Ng3+ {[%clk 0:00:26.6]} 27. Kh2 {[%clk 0:00:56.6]} 27... f5
{[%clk 0:00:24.6]} 28. g5 {[%clk 0:00:53.8]} 28... Nf7 {[%clk 0:00:23.1]} 29.
Ba5 {[%clk 0:00:49.9]} 29... Rc8 {[%clk 0:00:20.7]} 30. Nf6+ {[%clk 0:00:48.8]}
30... exf6 {[%clk 0:00:16.2]} 31. Rxd7 {[%clk 0:00:49.2]} 31... fxg5 {[%clk
0:00:15.1]} 32. Qd5 {[%clk 0:00:49.6]} 32... Qe8 {[%clk 0:00:05.9]} 33. e6
{[%clk 0:00:47.5]} 33... Nh6 {[%clk 0:00:05.4]} 34. e7+ {[%clk 0:00:45.1]} 34...
Nf7 {[%clk 0:00:04.7]} 35. Rd8 {[%clk 0:00:44.6]} 35... Rxd8 {[%clk 0:00:04]}
36. exd8=Q {[%clk 0:00:44.8]} 1-0

[Event "Early-Titled-Tuesday-Blitz-January-23-2024"]
[Site "Chess.com"]
[Date "2024.01.23"]
[Round "2"]
[White "HeroWilczek"]
[Black "OhanyanEminChess"]
[Result "1-0"]
[WhiteElo "2430"]
[BlackElo "2810"]
[TimeControl "180+1"]
[EndTime "8:17:11 PST"]
[Termination "HeroWilczek won by resignation"]

1. e4 {[%clk 0:02:55.3]} 1... e5 {[%clk 0:02:59.6]} 2. Nf3 {[%clk 0:02:55.2]}
2... Nc6 {[%clk 0:03:00.1]} 3. Bc4 {[%clk 0:02:55]} 3... Nf6 {[%clk 0:03:00.4]}
4. d3 {[%clk 0:02:55.3]} 4... d5 {[%clk 0:03:00.6]} 5. exd5 {[%clk 0:02:55.5]}
5... Nxd5 {[%clk 0:03:01.5]} 6. O-O {[%clk 0:02:55.8]} 6... Bc5 {[%clk
0:03:01.8]} 7. Re1 {[%clk 0:02:56.2]} 7... Be6 {[%clk 0:03:02.2]} 8. Nbd2 {[%clk
0:02:48.2]} 8... f6 {[%clk 0:02:58.8]} 9. Nb3 {[%clk 0:02:35]} 9... Bb6 {[%clk
0:02:56.6]} 10. d4 {[%clk 0:02:33.4]} 10... O-O {[%clk 0:02:56.8]} 11. dxe5
{[%clk 0:02:27.5]} 11... Nxe5 {[%clk 0:02:57.7]} 12. Nxe5 {[%clk 0:02:22.9]}
12... fxe5 {[%clk 0:02:58.6]} 13. Be3 {[%clk 0:02:21.2]} 13... Bxe3 {[%clk
0:01:51.7]} 14. fxe3 {[%clk 0:02:11.9]} 14... Qd6 {[%clk 0:01:49.9]} 15. Qd2
{[%clk 0:01:59.4]} 15... Rad8 {[%clk 0:01:47.4]} 16. Rad1 {[%clk 0:01:55.3]}
16... Kh8 {[%clk 0:01:38.3]} 17. e4 {[%clk 0:01:41.8]} 17... Qb6+ {[%clk
0:01:34.8]} 18. Kh1 {[%clk 0:01:41.8]} 18... Rf2 {[%clk 0:00:34.6]} 19. Qg5
{[%clk 0:01:24.7]} 19... Rdf8 {[%clk 0:00:17.7]} 20. Bxd5 {[%clk 0:01:13.2]}
20... Qb4 {[%clk 0:00:18]} 21. c3 {[%clk 0:01:07.1]} 21... Qb5 {[%clk
0:00:18.4]} 22. h3 {[%clk 0:01:01.8]} 22... Bxh3 {[%clk 0:00:18.8]} 23. gxh3
{[%clk 0:00:57.5]} 23... Qd7 {[%clk 0:00:15.5]} 24. Qg4 {[%clk 0:00:52.7]} 24...
Qe7 {[%clk 0:00:13.8]} 25. Bc4 {[%clk 0:00:47.6]} 25... Qf6 {[%clk 0:00:09.8]}
26. Rf1 {[%clk 0:00:43.2]} 26... Rf4 {[%clk 0:00:04.6]} 27. Rxf4 {[%clk
0:00:42.3]} 27... exf4 {[%clk 0:00:05.5]} 28. Qf3 {[%clk 0:00:36]} 28... g6
{[%clk 0:00:03.2]} 29. Qd3 {[%clk 0:00:32.1]} 29... Kg7 {[%clk 0:00:01.7]} 30.
Qd4 {[%clk 0:00:32.1]} 30... Kh6 {[%clk 0:00:02.3]} 31. Qxf6 {[%clk 0:00:31.3]}
31... Rxf6 {[%clk 0:00:03.2]} 32. Kg2 {[%clk 0:00:31.9]} 32... f3+ {[%clk
0:00:03.7]} 33. Kf2 {[%clk 0:00:32.5]} 33... Kg5 {[%clk 0:00:04.6]} 34. e5
{[%clk 0:00:31.8]} 34... Rf8 {[%clk 0:00:05.1]} 35. Re1 {[%clk 0:00:30.5]} 1-0

[Event "Early-Titled-Tuesday-Blitz-January-23-2024"]
[Site "Chess.com"]
[Date "2024.01.23"]
[Round "2"]
[White "NtcPou"]
[Black "m_ezat"]
[Result "0-1"]
[WhiteElo "2001"]
[BlackElo "2441"]
[TimeControl "180+1"]
[EndTime "8:17:11 PST"]
[Termination "m_ezat won by resignation"]

1. e4 {[%clk 0:02:55.6]} 1... e5 {[%clk 0:02:15.5]} 2. Nf3 {[%clk 0:02:53]} 2...
Nc6 {[%clk 0:02:15.6]} 3. Bc4 {[%clk 0:02:52.8]} 3... Nf6 {[%clk 0:02:15.4]} 4.
d3 {[%clk 0:02:51]} 4... h6 {[%clk 0:02:14.8]} 5. O-O {[%clk 0:02:50.3]} 5... d6
{[%clk 0:02:13.8]} 6. c3 {[%clk 0:02:50.4]} 6... g5 {[%clk 0:02:13.9]} 7. Nbd2
{[%clk 0:02:40.6]} 7... Bg7 {[%clk 0:02:12.8]} 8. b4 {[%clk 0:02:27.7]} 8... Ne7
{[%clk 0:02:09]} 9. d4 {[%clk 0:02:25.4]} 9... Ng6 {[%clk 0:02:05.2]} 10. Qb3
{[%clk 0:02:23]} 10... Qe7 {[%clk 0:02:04.4]} 11. a4 {[%clk 0:02:08.7]} 11... g4
{[%clk 0:02:00.6]} 12. Ne1 {[%clk 0:02:08.1]} 12... h5 {[%clk 0:02:00.8]} 13.
Nd3 {[%clk 0:02:08]} 13... h4 {[%clk 0:01:58.6]} 14. dxe5 {[%clk 0:02:05.2]}
14... Nxe5 {[%clk 0:01:55.5]} 15. Nxe5 {[%clk 0:02:04.6]} 15... Qxe5 {[%clk
0:01:55.6]} 16. f4 {[%clk 0:01:55.1]} 16... gxf3 {[%clk 0:01:49]} 17. Nxf3
{[%clk 0:01:54.9]} 17... Qe7 {[%clk 0:01:47.2]} 18. Ng5 {[%clk 0:01:51.2]} 18...
O-O {[%clk 0:01:39.5]} 19. Rf4 {[%clk 0:01:24.8]} 19... h3 {[%clk 0:01:37.9]}
20. e5 {[%clk 0:01:12]} 20... dxe5 {[%clk 0:01:28.7]} 21. Qc2 {[%clk 0:01:11.2]}
21... exf4 {[%clk 0:01:25.2]} 22. Bxf4 {[%clk 0:01:11]} 22... Be6 {[%clk
0:01:08]} 23. Be5 {[%clk 0:01:02.4]} 23... Bxc4 {[%clk 0:00:44]} 24. Bxf6 {[%clk
0:01:01.4]} 24... Qe3+ {[%clk 0:00:44.1]} 25. Kh1 {[%clk 0:01:00.1]} 25... Bd3
{[%clk 0:00:44.2]} 26. Qd1 {[%clk 0:00:42.2]} 26... Bxf6 {[%clk 0:00:39.6]} 27.
Nf3 {[%clk 0:00:35.8]} 27... hxg2+ {[%clk 0:00:38.6]} 28. Kxg2 {[%clk
0:00:36.1]} 28... Be4 {[%clk 0:00:38.6]} 29. Ra2 {[%clk 0:00:34.7]} 29... Qxf3+
{[%clk 0:00:33.1]} 30. Qxf3 {[%clk 0:00:34]} 30... Bxf3+ {[%clk 0:00:34]} 31.
Kxf3 {[%clk 0:00:34.6]} 31... Bxc3 {[%clk 0:00:34.3]} 32. Rc2 {[%clk 0:00:34.5]}
32... Bg7 {[%clk 0:00:35]} 33. Rxc7 {[%clk 0:00:34.9]} 33... Rac8 {[%clk
0:00:33.4]} 34. Rxb7 {[%clk 0:00:34.8]} 34... Rfd8 {[%clk 0:00:33]} 35. Rxa7
{[%clk 0:00:31.9]} 35... Rd4 {[%clk 0:00:32.6]} 36. b5 {[%clk 0:00:31.5]} 36...
Rc3+ {[%clk 0:00:32.6]} 37. Ke2 {[%clk 0:00:31.3]} 37... Rb4 {[%clk 0:00:32.8]}
38. Ra8+ {[%clk 0:00:24.5]} 38... Kh7 {[%clk 0:00:30.8]} 39. a5 {[%clk
0:00:23.8]} 39... Rb2+ {[%clk 0:00:30.8]} 40. Kd1 {[%clk 0:00:24.3]} 40... Bh6
{[%clk 0:00:27.9]} 0-1

[Event "Early-Titled-Tuesday-Blitz-January-23-2024"]
[Site "Chess.com"]
[Date "2024.01.23"]
[Round "2"]
[White "Onischuk_V"]
[Black "Huragan007"]
[Result "1-0"]
[WhiteElo "2798"]
[BlackElo "2546"]
[TimeControl "180+1"]
[EndTime "8:17:12 PST"]
[Termination "Onischuk_V won by resignation"]

1. e4 {[%clk 0:02:53.4]} 1... c5 {[%clk 0:03:00.2]} 2. Nf3 {[%clk 0:02:52.1]}
2... d6 {[%clk 0:03:00.6]} 3. d4 {[%clk 0:02:51.4]} 3... cxd4 {[%clk 0:03:01.5]}
4. Nxd4 {[%clk 0:02:50.8]} 4... Nf6 {[%clk 0:03:02.2]} 5. Nc3 {[%clk 0:02:50.7]}
5... g6 {[%clk 0:03:02.9]} 6. g3 {[%clk 0:02:46.5]} 6... Bg7 {[%clk 0:03:02.9]}
7. Bg2 {[%clk 0:02:47.1]} 7... O-O {[%clk 0:03:03]} 8. h3 {[%clk 0:02:42.6]}
8... Nbd7 {[%clk 0:02:53.6]} 9. O-O {[%clk 0:02:40.8]} 9... Nc5 {[%clk
0:02:53.4]} 10. Re1 {[%clk 0:02:38.3]} 10... a6 {[%clk 0:02:51.4]} 11. Nd5
{[%clk 0:02:29.9]} 11... Be6 {[%clk 0:02:39.7]} 12. c3 {[%clk 0:02:24.8]} 12...
Rc8 {[%clk 0:02:31.1]} 13. Bg5 {[%clk 0:02:20.9]} 13... Bxd5 {[%clk 0:02:21.5]}
14. exd5 {[%clk 0:02:20.2]} 14... Re8 {[%clk 0:02:17.6]} 15. Qd2 {[%clk
0:02:09.7]} 15... Qb6 {[%clk 0:02:11.2]} 16. Re2 {[%clk 0:02:06.7]} 16... Na4
{[%clk 0:01:56.6]} 17. Rae1 {[%clk 0:02:03.6]} 17... Rc7 {[%clk 0:01:56.8]} 18.
Be3 {[%clk 0:01:48.3]} 18... Nc5 {[%clk 0:01:46.2]} 19. Qc2 {[%clk 0:01:42.9]}
19... Rcc8 {[%clk 0:01:04.4]} 20. Nb3 {[%clk 0:01:34.5]} 20... Qc7 {[%clk
0:00:58.1]} 21. Nxc5 {[%clk 0:01:32.9]} 21... dxc5 {[%clk 0:00:58.4]} 22. Bf4
{[%clk 0:01:29.2]} 22... Qd7 {[%clk 0:00:57.2]} 23. Qd2 {[%clk 0:01:13.7]} 23...
Rcd8 {[%clk 0:00:52.9]} 24. Rd1 {[%clk 0:01:02.1]} 24... b5 {[%clk 0:00:47.9]}
25. Qe1 {[%clk 0:00:54.3]} 25... e6 {[%clk 0:00:42.5]} 26. d6 {[%clk 0:00:46.8]}
26... Nh5 {[%clk 0:00:26.3]} 27. Bg5 {[%clk 0:00:45.8]} 27... Bf6 {[%clk
0:00:18.1]} 28. Bxf6 {[%clk 0:00:46]} 28... Nxf6 {[%clk 0:00:18.3]} 29. Qd2
{[%clk 0:00:45.9]} 29... Rf8 {[%clk 0:00:17.8]} 30. Qg5 {[%clk 0:00:44.9]} 30...
Ne8 {[%clk 0:00:16]} 31. Bc6 {[%clk 0:00:40]} 31... Qxc6 {[%clk 0:00:06.9]} 32.
Qxd8 {[%clk 0:00:39.7]} 32... Qf3 {[%clk 0:00:05.9]} 33. Red2 {[%clk 0:00:37.6]}
33... Nf6 {[%clk 0:00:04.9]} 34. Qe7 {[%clk 0:00:36.1]} 34... Ne4 {[%clk
0:00:04.2]} 35. d7 {[%clk 0:00:34.6]} 35... Nxd2 {[%clk 0:00:04.5]} 36. Qxf8+
{[%clk 0:00:34.7]} 36... Kxf8 {[%clk 0:00:04.4]} 37. d8=Q+ {[%clk 0:00:35.4]}
37... Kg7 {[%clk 0:00:05.1]} 38. Qxd2 {[%clk 0:00:35.5]} 1-0

[Event "Early-Titled-Tuesday-Blitz-January-23-2024"]
[Site "Chess.com"]
[Date "2024.01.23"]
[Round "2"]
[White "Ducke13"]
[Black "betta2004"]
[Result "0-1"]
[WhiteElo "2330"]
[BlackElo "2546"]
[TimeControl "180+1"]
[EndTime "8:17:12 PST"]
[Termination "betta2004 won on time"]

1. d4 {[%clk 0:03:00.9]} 1... e5 {[%clk 0:02:58]} 2. dxe5 {[%clk 0:03:00.6]}
2... Nc6 {[%clk 0:02:58.3]} 3. Nf3 {[%clk 0:03:00.9]} 3... Qe7 {[%clk
0:02:58.8]} 4. Bg5 {[%clk 0:02:58.3]} 4... Qb4+ {[%clk 0:02:58.7]} 5. Nc3 {[%clk
0:02:58]} 5... Qxb2 {[%clk 0:02:57.2]} 6. Bd2 {[%clk 0:02:58.6]} 6... Bb4 {[%clk
0:02:56.5]} 7. Rb1 {[%clk 0:02:58.3]} 7... Qa3 {[%clk 0:02:56.9]} 8. Rb3 {[%clk
0:02:55.3]} 8... Qa5 {[%clk 0:02:57.2]} 9. e4 {[%clk 0:02:54.6]} 9... Nge7
{[%clk 0:02:57.1]} 10. Nd5 {[%clk 0:02:49.1]} 10... Nxd5 {[%clk 0:02:49.5]} 11.
exd5 {[%clk 0:02:45.3]} 11... Bxd2+ {[%clk 0:02:35.7]} 12. Qxd2 {[%clk
0:02:44.9]} 12... Qxd2+ {[%clk 0:02:35.6]} 13. Kxd2 {[%clk 0:02:41.6]} 13... Ne7
{[%clk 0:02:36]} 14. d6 {[%clk 0:02:34.7]} 14... cxd6 {[%clk 0:02:34.1]} 15.
exd6 {[%clk 0:02:30]} 15... Nf5 {[%clk 0:02:34.7]} 16. Rd3 {[%clk 0:02:29.1]}
16... O-O {[%clk 0:02:32.2]} 17. g4 {[%clk 0:02:27.5]} 17... Nh6 {[%clk
0:02:32.5]} 18. Bh3 {[%clk 0:02:07.9]} 18... f6 {[%clk 0:02:30.1]} 19. Re1
{[%clk 0:02:04.1]} 19... b6 {[%clk 0:02:29.5]} 20. Re7 {[%clk 0:02:03.2]} 20...
Ba6 {[%clk 0:02:29.9]} 21. Rc3 {[%clk 0:02:00]} 21... Bb5 {[%clk 0:02:28.5]} 22.
Rc7 {[%clk 0:01:56.9]} 22... Nf7 {[%clk 0:02:25.5]} 23. Nd4 {[%clk 0:01:55.5]}
23... Ba4 {[%clk 0:02:23.5]} 24. Nf5 {[%clk 0:01:55]} 24... g6 {[%clk
0:02:19.6]} 25. Nd4 {[%clk 0:01:04.3]} 25... Nxd6 {[%clk 0:02:16.7]} 26. Bg2
{[%clk 0:01:05]} 26... Rae8 {[%clk 0:02:13.9]} 27. Bd5+ {[%clk 0:01:05.1]} 27...
Kh8 {[%clk 0:02:14.1]} 28. Rxe8 {[%clk 0:00:59.3]} 28... Rxe8 {[%clk 0:02:15]}
29. Rxa7 {[%clk 0:00:59.5]} 29... Re5 {[%clk 0:02:05.8]} 30. c4 {[%clk 0:00:48]}
30... b5 {[%clk 0:01:56.6]} 31. f4 {[%clk 0:00:44.9]} 31... Nxc4+ {[%clk
0:01:35.3]} 32. Bxc4 {[%clk 0:00:36.2]} 32... Re4 {[%clk 0:01:36]} 33. Kd3
{[%clk 0:00:20.2]} 33... Rxf4 {[%clk 0:01:35.6]} 34. Nxb5 {[%clk 0:00:14.9]}
34... Bd1 {[%clk 0:01:31.3]} 35. Rxd7 {[%clk 0:00:12.7]} 35... Bxg4 {[%clk
0:01:30.2]} 36. Rd8+ {[%clk 0:00:12.6]} 36... Kg7 {[%clk 0:01:30.2]} 37. Nd6
{[%clk 0:00:11.6]} 37... Rf2 {[%clk 0:01:27.2]} 38. Kc3 {[%clk 0:00:07.8]} 38...
f5 {[%clk 0:01:20.5]} 39. a4 {[%clk 0:00:04.1]} 39... Bf3 {[%clk 0:01:18]} 40.
a5 {[%clk 0:00:04]} 40... Rxh2 {[%clk 0:01:09.8]} 41. a6 {[%clk 0:00:03.7]}
41... Rh1 {[%clk 0:01:08.6]} 42. a7 {[%clk 0:00:02.4]} 42... Ra1 {[%clk
0:01:09.1]} 43. Nb5 {[%clk 0:00:02.1]} 43... h5 {[%clk 0:01:08.3]} 44. Bd5
{[%clk 0:00:02.4]} 44... Be2 {[%clk 0:00:59.3]} 45. Kb4 {[%clk 0:00:01.1]} 45...
Rb1+ {[%clk 0:00:56.8]} 0-1

[Event "Early-Titled-Tuesday-Blitz-January-23-2024"]
[Site "Chess.com"]
[Date "2024.01.23"]
[Round "2"]
[White "secretsuperstar7"]
[Black "Njal28"]
[Result "0-1"]
[WhiteElo "2507"]
[BlackElo "3042"]
[TimeControl "180+1"]
[EndTime "8:17:13 PST"]
[Termination "Njal28 won by checkmate"]

1. c4 {[%clk 0:02:57]} 1... e6 {[%clk 0:02:58.2]} 2. Nc3 {[%clk 0:02:57]} 2...
Nf6 {[%clk 0:02:56.8]} 3. e4 {[%clk 0:02:56.9]} 3... e5 {[%clk 0:02:57]} 4. Nf3
{[%clk 0:02:53.7]} 4... Nc6 {[%clk 0:02:57.2]} 5. d4 {[%clk 0:02:50.9]} 5...
exd4 {[%clk 0:02:57.2]} 6. Nxd4 {[%clk 0:02:50.9]} 6... Bb4 {[%clk 0:02:56.8]}
7. Nf5 {[%clk 0:02:42.9]} 7... O-O {[%clk 0:02:55.7]} 8. Bd3 {[%clk 0:02:42]}
8... d5 {[%clk 0:02:45]} 9. cxd5 {[%clk 0:02:36.4]} 9... Bxf5 {[%clk 0:02:45.1]}
10. exf5 {[%clk 0:02:34]} 10... Nxd5 {[%clk 0:02:31.7]} 11. O-O {[%clk
0:02:31.5]} 11... Bxc3 {[%clk 0:02:26.9]} 12. bxc3 {[%clk 0:02:31.4]} 12... Nxc3
{[%clk 0:02:27.8]} 13. Qc2 {[%clk 0:02:29.7]} 13... Nd5 {[%clk 0:02:22.5]} 14.
Ba3 {[%clk 0:02:20.1]} 14... Ndb4 {[%clk 0:02:13.5]} 15. Bxb4 {[%clk 0:01:47.4]}
15... Nxb4 {[%clk 0:02:14.4]} 16. Qc3 {[%clk 0:01:47.1]} 16... Qxd3 {[%clk
0:02:06.3]} 17. Qxb4 {[%clk 0:01:46.7]} 17... b6 {[%clk 0:02:06.6]} 18. f6
{[%clk 0:01:39.1]} 18... c5 {[%clk 0:02:03.4]} 19. Qh4 {[%clk 0:01:31.6]} 19...
Qd4 {[%clk 0:02:01.3]} 20. Qxd4 {[%clk 0:01:23.8]} 20... cxd4 {[%clk 0:02:02.2]}
21. fxg7 {[%clk 0:01:23.8]} 21... Kxg7 {[%clk 0:02:03.1]} 22. Rfd1 {[%clk
0:01:23.3]} 22... Rfd8 {[%clk 0:02:03.6]} 23. Rac1 {[%clk 0:01:21.6]} 23... Rac8
{[%clk 0:02:03.4]} 24. Kf1 {[%clk 0:01:14.1]} 24... Rxc1 {[%clk 0:02:00.3]} 25.
Rxc1 {[%clk 0:01:15]} 25... d3 {[%clk 0:01:57.9]} 26. Rd1 {[%clk 0:01:15.3]}
26... Kf6 {[%clk 0:01:58.3]} 27. Ke1 {[%clk 0:01:15.7]} 27... Ke5 {[%clk
0:01:59]} 28. Kd2 {[%clk 0:01:16]} 28... Kd4 {[%clk 0:01:59.1]} 29. Re1 {[%clk
0:01:13.7]} 29... Rc8 {[%clk 0:01:57.2]} 30. Re7 {[%clk 0:00:58.2]} 30... Rc2+
{[%clk 0:01:54.9]} 31. Kd1 {[%clk 0:00:58.5]} 31... Rxf2 {[%clk 0:01:32.2]} 32.
Rxa7 {[%clk 0:00:53.2]} 32... Rxg2 {[%clk 0:01:29.9]} 33. Rxf7 {[%clk
0:00:48.9]} 33... Rxh2 {[%clk 0:01:29.9]} 34. Rd7+ {[%clk 0:00:47.5]} 34... Kc3
{[%clk 0:01:29.7]} 35. Rc7+ {[%clk 0:00:47.5]} 35... Kb4 {[%clk 0:01:28]} 36.
Rb7 {[%clk 0:00:42.8]} 36... Kc5 {[%clk 0:01:28.1]} 37. Rd7 {[%clk 0:00:40.2]}
37... d2 {[%clk 0:01:20.8]} 38. Rc7+ {[%clk 0:00:37.9]} 38... Kb5 {[%clk
0:01:18.3]} 39. Rb7 {[%clk 0:00:32.7]} 39... h5 {[%clk 0:01:18.4]} 40. a4+
{[%clk 0:00:27.8]} 40... Kc6 {[%clk 0:01:14.5]} 41. Rb8 {[%clk 0:00:21.8]} 41...
h4 {[%clk 0:01:15]} 42. Rc8+ {[%clk 0:00:21.3]} 42... Kb7 {[%clk 0:01:14.1]} 43.
Rd8 {[%clk 0:00:20.8]} 43... h3 {[%clk 0:01:14.5]} 44. Rd7+ {[%clk 0:00:17.8]}
44... Ka6 {[%clk 0:01:13.5]} 45. Rd8 {[%clk 0:00:17.1]} 45... Rg2 {[%clk
0:01:13.2]} 46. Rh8 {[%clk 0:00:12.5]} 46... h2 {[%clk 0:01:13]} 47. a5 {[%clk
0:00:11]} 47... bxa5 {[%clk 0:01:12.1]} 48. Rh6+ {[%clk 0:00:10.4]} 48... Kb7
{[%clk 0:01:12.7]} 49. Rh7+ {[%clk 0:00:10.5]} 49... Kc6 {[%clk 0:01:13.3]} 50.
Rh6+ {[%clk 0:00:10.9]} 50... Kd7 {[%clk 0:01:14]} 51. Rh7+ {[%clk 0:00:11.1]}
51... Ke6 {[%clk 0:01:14.7]} 52. Rh6+ {[%clk 0:00:11.6]} 52... Kf7 {[%clk
0:01:15.4]} 53. Rh7+ {[%clk 0:00:11.9]} 53... Kg6 {[%clk 0:01:16]} 54. Rh3
{[%clk 0:00:09.9]} 54... Rg1+ {[%clk 0:01:16.1]} 55. Ke2 {[%clk 0:00:08.2]}
55... h1=Q {[%clk 0:01:16.9]} 56. Rxh1 {[%clk 0:00:04.5]} 56... d1=Q+ {[%clk
0:01:16.2]} 57. Kf2 {[%clk 0:00:04.3]} 57... Qe1+ {[%clk 0:01:16.1]} 58. Kf3
{[%clk 0:00:04.5]} 58... Rg3+ {[%clk 0:01:16.5]} 59. Kf4 {[%clk 0:00:04.8]}
59... Qe3# {[%clk 0:01:17.2]} 0-1